bitfinex/quotes_BTCUSD_20230114
["timestamp","ask_amount","ask_price","bid_price","bid_amount"]
[1673709982679,0.320471,20813.0,20809.0,0.48056]
[1673709982680,0.06001,20812.0,20809.0,0.48056]
[1673709982938,0.19072595,20812.0,20809.0,0.48056]
[1673709983181,0.960893,20814.0,20809.0,0.48056]
[1673709983464,0.960893,20814.0,20809.0,0.53324343]
[1673709983732,0.320471,20813.0,20809.0,0.57424343]
[1673709983976,0.06001,20812.0,20809.0,0.57424343]
[1673709984239,0.67117395,20814.0,20809.0,0.52156]
[1673709984483,0.67117395,20814.0,20809.0,1.01380443]
[1673709984734,0.320471,20813.0,20809.0,1.01380443]
[1673709984982,0.06001,20812.0,20809.0,1.01380443]
[1673709985237,0.480469,20813.0,20809.0,0.48056]
[1673709985988,0.480469,20813.0,20809.0,0.53324343]
[1673709986247,0.480469,20813.0,20809.0,0.48056]
[1673709986748,0.480469,20813.0,20809.0,0.53324343]
[1673709986994,0.320471,20812.0,20809.0,0.48056]
[1673709987250,0.19072595,20811.0,20807.0,0.480606]
[1673709987503,0.19072595,20811.0,20806.0,0.480622]
[1673709987504,0.51119695,20810.0,20806.0,0.480622]
[1673709987763,0.51119695,20810.0,20805.0,0.480635]
[1673709987764,0.51119695,20809.0,20805.0,0.480635]
[1673709988042,0.19072595,20808.0,20805.0,0.480635]
[1673709988798,0.6277764,20810.0,20805.0,0.480635]
[1673709989045,0.81850235,20810.0,20805.0,0.53331843]
[1673709989544,0.001,20808.0,20805.0,0.67231843]
[1673709989789,0.480568,20809.0,20804.0,0.480655]
[1673709990042,0.67129395,20809.0,20805.0,0.139]
[1673709990294,0.480568,20809.0,20805.0,0.19168343]
[1673709990558,0.480568,20809.0,20804.0,0.480655]
[1673709990802,0.67129395,20809.0,20804.0,0.53333843]
[1673709991055,0.67829395,20809.0,20804.0,0.53333843]
[1673709991816,0.67129395,20809.0,20804.0,0.53333843]
[1673709992065,0.025,20809.0,20805.0,0.05668343]
[1673709992329,0.480534,20811.0,20806.0,1.113546]
[1673709992576,0.007,20809.0,20807.0,0.15268343]
[1673709992824,0.007,20809.0,20808.0,0.961168]
[1673709993330,0.480471,20813.0,20808.0,0.961168]
[1673709993580,0.480471,20813.0,20809.0,0.05268343]
[1673709993828,0.320471,20812.0,20807.0,0.480587]
[1673709994088,0.320471,20812.0,20805.0,0.480634]
[1673709994089,1.68898964,20811.0,20805.0,0.480634]
[1673709994345,0.98839864,20810.0,20804.0,0.480657]
[1673709994626,0.98839864,20810.0,20803.0,0.480683]
[1673709994627,2.41471892,20809.0,20803.0,0.480683]
[1673709994896,1.71178128,20809.0,20808.0,0.011]
[1673709995131,2.00725228,20809.0,20802.0,0.62345271]
[1673709995387,0.06001,20808.0,20802.0,0.62345271]
[1673709995644,1.47243195,20807.0,20802.0,0.62345271]
[1673709995898,0.25073595,20806.0,20803.0,0.061]
[1673709996158,0.320471,20805.0,20802.0,0.62345271]
[1673709996416,0.19072595,20804.0,20802.0,0.14673871]
[1673709996657,0.320471,20803.0,20802.0,0.13773871]
[1673709996927,0.480652,20806.0,20802.0,0.14173871]
[1673709997225,0.7082323,20806.0,20802.0,0.19442214]
[1673709997455,0.801128,20805.0,20802.0,0.19442214]
[1673709997764,0.06001,20804.0,20802.0,0.19042214]
[1673709998015,1.29189998,20810.0,20802.0,1.10918071]
[1673709998016,0.025,20805.0,20802.0,1.10918071]
[1673709998286,0.48055,20810.0,20803.0,0.152328]
[1673709998585,0.025,20806.0,20805.0,0.961302]
[1673709998869,0.48055,20810.0,20805.0,0.961302]
[1673709999122,0.48055,20810.0,20806.0,0.05268343]
[1673709999378,0.320471,20809.0,20806.0,0.05268343]
[1673709999633,0.06001,20808.0,20806.0,0.53330943]
[1673709999924,0.62327411,20811.0,20806.0,0.53330943]
[1673709999925,1.2784,20812.0,20807.0,0.05316976]
[1673710000177,1.2784,20812.0,20808.0,1.01382843]
[1673710000433,1.2784,20812.0,20809.0,0.05268343]
[1673710000685,0.320471,20811.0,20809.0,0.53323543]
[1673710000939,0.06001,20810.0,20809.0,0.480552]
[1673710001181,2.03732418,20814.0,20809.0,0.961113]
[1673710001429,2.03732418,20814.0,20810.0,0.05268343]
[1673710001678,0.025,20812.0,20810.0,0.05268343]
[1673710001929,0.025,20810.0,20809.0,0.972101]
[1673710002452,0.14274311,20813.0,20810.0,0.012]
[1673710002707,0.320471,20812.0,20809.0,0.48054]
[1673710002951,0.06001,20811.0,20809.0,0.49154]
[1673710003193,0.345471,20810.0,20809.0,0.49154]
[1673710003703,0.025,20810.0,20809.0,0.972101]
[1673710003951,0.14274311,20814.0,20809.0,0.961101]
[1673710004214,0.14274311,20812.0,20810.0,0.011]
[1673710004467,0.14274311,20812.0,20805.0,0.480638]
[1673710004468,0.79767269,20811.0,20805.0,0.480638]
[1673710004723,0.37573595,20810.0,20809.0,0.011]
[1673710004973,0.565548,20810.0,20805.0,0.480638]
[1673710005239,0.51119695,20809.0,20805.0,0.480638]
[1673710005477,0.51119695,20809.0,20804.0,0.480659]
[1673710005478,0.320471,20808.0,20804.0,0.480659]
[1673710005719,0.19072595,20807.0,20804.0,0.480659]
[1673710006461,1.10383811,20810.0,20804.0,0.480659]
[1673710006731,1.10383811,20810.0,20805.0,0.05268343]
[1673710006732,1.29456406,20810.0,20805.0,0.05268343]
[1673710006982,0.025,20809.0,20806.0,0.05268343]
[1673710007235,1.43824769,20811.0,20806.0,0.53330343]
[1673710007488,0.83737118,20812.0,20807.0,0.05268343]
[1673710007489,0.007,20810.0,20807.0,0.05268343]
[1673710007726,0.007,20810.0,20808.0,0.480584]
[1673710007980,0.35686218,20813.0,20808.0,0.961168]
[1673710008226,0.025,20809.0,20808.0,0.05268343]
[1673710008483,0.345471,20809.0,20806.0,0.49061]
[1673710008732,0.19072595,20809.0,20806.0,0.48061]
[1673710008973,0.19072595,20809.0,20807.0,0.011]
[1673710009222,0.16774311,20810.0,20807.0,0.011]
[1673710009462,0.320471,20809.0,20807.0,0.011]
[1673710009715,0.06001,20808.0,20807.0,0.011]
[1673710009969,0.06001,20808.0,20805.0,0.480634]
[1673710010220,0.19072595,20808.0,20805.0,0.480634]
[1673710010464,0.480565,20809.0,20807.0,0.011]
[1673710010722,0.480565,20809.0,20805.0,0.480634]
[1673710010989,0.320471,20808.0,20805.0,0.484634]
[1673710011237,0.67129095,20809.0,20805.0,0.480634]
[1673710011485,0.480565,20809.0,20807.0,0.011]
[1673710011730,0.480565,20809.0,20805.0,0.480634]
[1673710011997,0.320471,20808.0,20805.0,0.480634]
[1673710012247,0.480565,20809.0,20805.0,0.480634]
[1673710012554,0.35686218,20810.0,20806.0,0.05268343]
[1673710012765,0.83400167,20812.0,20807.0,1.01388743]
[1673710012766,0.025,20808.0,20807.0,1.01388743]
[1673710013022,0.025,20808.0,20807.0,1.113494]
[1673710013551,0.35686218,20813.0,20807.0,1.113494]
[1673710013790,0.025,20810.0,20808.0,0.05268343]
[1673710014040,0.025,20810.0,20809.0,1.593893]
[1673710014527,0.14274311,20814.0,20809.0,1.593893]
[1673710014776,0.025,20813.0,20810.0,0.05268343]
[1673710015020,0.025,20813.0,20809.0,0.480543]
[1673710015264,0.025,20813.0,20811.0,0.48051]
[1673710015527,0.14274311,20813.0,20810.0,0.480521]
[1673710015767,0.35686218,20813.0,20810.0,0.480521]
[1673710016065,0.320471,20812.0,20810.0,0.480521]
[1673710016333,0.35686218,20813.0,20811.0,0.012]
[1673710016334,0.16774311,20813.0,20811.0,0.012]
[1673710016573,0.16774311,20813.0,20810.0,0.480521]
[1673710016574,0.35686218,20813.0,20810.0,0.480521]
[1673710016815,0.320471,20812.0,20810.0,0.012]
[1673710017060,0.06001,20811.0,20808.0,0.480576]
[1673710017311,0.320471,20810.0,20808.0,0.480576]
[1673710017561,0.14274311,20811.0,20808.0,0.480576]
[1673710018301,0.320471,20810.0,20807.0,0.480598]
[1673710018557,0.06001,20809.0,20807.0,0.480598]
[1673710018808,0.33346906,20810.0,20807.0,0.480598]
[1673710019054,0.14274311,20810.0,20807.0,0.480598]
[1673710019311,0.14274311,20810.0,20808.0,0.011]
[1673710019558,0.35686218,20810.0,20807.0,0.480598]
[1673710019834,0.025,20810.0,20808.0,1.0137744]
[1673710020089,0.14274311,20812.0,20808.0,1.0137744]
[1673710020337,0.025,20810.0,20809.0,0.0526094]
[1673710020585,0.025,20810.0,20809.0,0.480561]
[1673710021321,0.14274311,20813.0,20809.0,0.480561]
[1673710021573,0.025,20810.0,20809.0,0.491561]
[1673710022052,0.025,20810.0,20809.0,0.972122]
[1673710022329,0.025,20810.0,20809.0,1.124389]
[1673710022576,0.49960846,20814.0,20809.0,1.213389]
[1673710022577,0.14274311,20814.0,20809.0,1.213389]
[1673710022834,0.14274311,20814.0,20810.0,0.0526094]
[1673710023083,0.14274311,20814.0,20811.0,0.96102]
[1673710023336,0.14274311,20814.0,20811.0,1.0136294]
[1673710023592,0.14274311,20814.0,20811.0,0.96102]
[1673710024108,0.35686218,20814.0,20811.0,0.96102]
[1673710024362,0.46321411,20813.0,20811.0,0.96102]
[1673710024616,0.14274311,20813.0,20811.0,0.96102]
[1673710025111,0.14274311,20813.0,20811.0,0.97302]
[1673710025371,0.35686218,20814.0,20811.0,0.96102]
[1673710025625,0.025,20813.0,20811.0,0.97302]
[1673710025895,0.14274311,20812.0,20811.0,0.012]
[1673710026158,1.15348632,20812.0,20811.0,0.012]
[1673710026423,1.65197152,20812.0,20811.0,0.012]
[1673710026676,1.51078982,20812.0,20811.0,0.012]
[1673710026920,2.00001005,20812.0,20811.0,0.012]
[1673710027158,2.00005164,20812.0,20811.0,0.012]
[1673710027454,2.00005164,20812.0,20807.0,0.961187]
[1673710027743,0.61010473,20811.0,20807.0,0.961187]
[1673710027996,0.51119695,20810.0,20807.0,0.961187]
[1673710028242,0.06001,20809.0,20805.0,0.480635]
[1673710028483,0.51119695,20808.0,20805.0,0.480635]
[1673710028735,0.19072595,20808.0,20807.0,0.011]
[1673710029009,0.14374751,20809.0,20807.0,0.011]
[1673710029257,0.320471,20808.0,20805.0,0.480635]
[1673710029496,0.14374751,20809.0,20805.0,0.480635]
[1673710029497,0.06001,20807.0,20805.0,0.004]
[1673710029740,1.05565973,20809.0,20805.0,0.004]
[1673710029977,0.86493378,20809.0,20805.0,0.004]
[1673710030188,0.320471,20808.0,20805.0,0.004]
[1673710030482,1.16541513,20809.0,20804.0,0.480655]
[1673710030483,1.14041513,20809.0,20804.0,0.480655]
[1673710030740,0.025,20808.0,20807.0,0.011]
[1673710031003,0.14374751,20809.0,20804.0,0.0526094]
[1673710031241,0.14374751,20809.0,20805.0,0.484635]
[1673710031242,0.21572595,20809.0,20805.0,0.484635]
[1673710031492,0.62430651,20810.0,20805.0,0.5332444]
[1673710031743,0.007,20809.0,20805.0,0.5332444]
[1673710032002,0.007,20809.0,20805.0,0.480635]
[1673710032242,0.007,20809.0,20805.0,0.961283]
[1673710032500,0.81503246,20810.0,20805.0,0.961283]
[1673710032752,0.84003246,20810.0,20805.0,1.0178924]
[1673710033749,0.025,20809.0,20805.0,1.0178924]
[1673710033995,0.025,20809.0,20805.0,0.961283]
[1673710033996,0.19072595,20809.0,20805.0,0.961283]
[1673710034239,0.19072595,20809.0,20805.0,0.965283]
[1673710034490,0.14374751,20810.0,20805.0,0.961283]
[1673710034739,0.025,20809.0,20805.0,1.0178924]
[1673710035030,0.025,20809.0,20805.0,0.965283]
[1673710035240,0.025,20809.0,20806.0,0.3526094]
[1673710035490,0.025,20809.0,20807.0,0.2048994]
[1673710035760,0.025,20809.0,20807.0,1.94890162]
[1673710036022,0.025,20809.0,20808.0,0.152278]
[1673710036544,0.21562127,20814.0,20808.0,1.65618911]
[1673710036545,0.35936878,20814.0,20808.0,1.65618911]
[1673710036805,0.025,20809.0,20808.0,1.10391111]
[1673710037071,0.72932818,20814.0,20808.0,0.961168]
[1673710037357,0.025,20809.0,20808.0,0.972168]
[1673710037623,0.14374751,20813.0,20808.0,1.10391111]
[1673710037880,0.38436878,20814.0,20809.0,0.452263]
[1673710038141,0.35936878,20815.0,20810.0,0.1]
[1673710038392,0.14374751,20815.0,20811.0,0.0526094]
[1673710038660,0.35936878,20815.0,20811.0,0.1526094]
[1673710038908,0.70283978,20814.0,20811.0,0.480515]
[1673710039158,0.06001,20813.0,20811.0,0.480515]
[1673710039410,0.16674751,20814.0,20811.0,0.480515]
[1673710039411,0.38236878,20814.0,20811.0,0.480515]
[1673710039663,0.14374751,20813.0,20811.0,0.480515]
[1673710039924,0.320471,20812.0,20811.0,0.48043554]
[1673710040169,0.14374751,20813.0,20811.0,0.48043554]
[1673710040170,0.14374751,20813.0,20811.0,0.49043554]
[1673710040463,0.14374751,20813.0,20811.0,0.48043554]
[1673710040687,0.14374751,20813.0,20810.0,0.480518]
[1673710040961,0.35936878,20813.0,20810.0,0.480518]
[1673710041208,0.008,20812.0,20810.0,0.480518]
[1673710041706,0.35936878,20813.0,20810.0,0.480518]
[1673710041956,0.36736878,20813.0,20810.0,0.480518]
[1673710042207,0.35936878,20813.0,20810.0,0.480518]
[1673710042950,0.14374751,20812.0,20810.0,0.480518]
[1673710043212,0.001,20812.0,20810.0,0.540518]
[1673710043451,0.14374751,20812.0,20810.0,0.480518]
[1673710043710,0.14374751,20812.0,20810.0,0.540518]
[1673710043955,0.14374751,20812.0,20810.0,0.480518]
[1673710044212,0.320471,20811.0,20809.0,0.480544]
[1673710044462,0.55109473,20812.0,20810.0,0.06]
[1673710044683,0.55109473,20812.0,20809.0,0.480544]
[1673710044684,0.35936878,20812.0,20809.0,0.480544]
[1673710044970,0.38336878,20812.0,20810.0,0.004]
[1673710045230,0.38336878,20812.0,20809.0,0.480544]
[1673710045231,0.16774751,20812.0,20809.0,0.480544]
[1673710045575,0.320471,20811.0,20809.0,0.480544]
[1673710045781,0.320471,20810.0,20809.0,0.480544]
[1673710046045,0.26110993,20810.0,20807.0,0.480598]
[1673710046300,0.74228937,20810.0,20809.0,0.004]
[1673710046549,2.29737505,20810.0,20809.0,0.004]
[1673710046792,1.94057507,20810.0,20809.0,0.004]
[1673710047059,2.67601395,20810.0,20803.0,0.480679]
[1673710047316,0.50332,20808.0,20807.0,0.088]
[1673710047556,1.784959,20808.0,20802.0,0.14770535]
[1673710047818,0.61013256,20807.0,20802.0,0.14770535]
[1673710048057,0.51119695,20806.0,20802.0,0.14770535]
[1673710048303,0.19072595,20806.0,20803.0,0.034]
[1673710048557,0.62440764,20807.0,20803.0,0.034]
[1673710048802,0.62440764,20807.0,20802.0,0.62842335]
[1673710049061,0.81513359,20807.0,20802.0,0.68103275]
[1673710049310,0.480611,20807.0,20802.0,1.16175575]
[1673710049558,0.19072595,20807.0,20802.0,1.16175575]
[1673710049816,0.19072595,20807.0,20802.0,1.43849886]
[1673710050075,0.19072595,20807.0,20802.0,1.30449886]
[1673710050326,0.19372595,20807.0,20802.0,1.33849886]
[1673710050835,0.19372595,20807.0,20802.0,1.43849886]
[1673710051092,0.003,20807.0,20803.0,0.96188157]
[1673710051356,0.003,20807.0,20804.0,1.442016]
[1673710051638,0.003,20807.0,20805.0,0.152404]
[1673710051898,0.003,20807.0,20806.0,0.96126]
[1673710052150,0.003,20807.0,20806.0,1.113654]
[1673710052391,0.14379664,20811.0,20806.0,1.113654]
[1673710052642,0.039,20807.0,20806.0,1.06126]
[1673710052885,0.14379664,20811.0,20806.0,0.96126]
[1673710053393,0.095,20807.0,20806.0,0.96926]
[1673710053892,0.095,20807.0,20806.0,1.121648]
[1673710054143,0.14379664,20810.0,20806.0,1.113648]
[1673710054388,0.14379664,20810.0,20806.0,1.0218694]
[1673710054389,0.3594916,20810.0,20806.0,1.0218694]
[1673710054641,0.3594916,20810.0,20806.0,1.0138694]
[1673710054883,0.095,20807.0,20806.0,0.48863]
[1673710055131,0.14379664,20809.0,20805.0,0.48065]
[1673710055391,0.33452259,20809.0,20804.0,0.480672]
[1673710055643,0.19072595,20808.0,20804.0,0.480672]
[1673710055893,0.33452259,20808.0,20804.0,0.480672]
[1673710056385,0.33452259,20808.0,20806.0,0.008]
[1673710056643,0.33452259,20808.0,20804.0,0.480672]
[1673710056644,0.14379664,20808.0,20804.0,0.480672]
[1673710056894,0.33452259,20808.0,20804.0,0.480672]
[1673710057154,0.81510859,20808.0,20804.0,0.480672]
[1673710057443,1.20285861,20808.0,20806.0,0.008]
[1673710057687,0.575586,20808.0,20806.0,0.008]
[1673710057939,0.32047,20807.0,20806.0,0.008]
[1673710058189,0.71938264,20808.0,20804.0,0.488672]
[1673710058427,0.91010859,20808.0,20804.0,0.488672]
[1673710058672,0.71938264,20808.0,20804.0,0.488672]
[1673710058917,0.23879664,20808.0,20805.0,0.0526094]
[1673710059168,0.9902,20811.0,20806.0,0.48063]
[1673710059169,0.3594916,20811.0,20806.0,0.48063]
[1673710059418,0.095,20808.0,20807.0,0.0526094]
[1673710059681,0.095,20808.0,20807.0,0.480598]
[1673710059940,0.19,20808.0,20807.0,0.961205]
[1673710060187,0.14379664,20811.0,20807.0,0.961205]
[1673710060443,0.23879664,20811.0,20807.0,1.0138144]
[1673710060934,0.095,20808.0,20807.0,1.0218144]
[1673710061176,0.095,20808.0,20807.0,0.969205]
[1673710061418,0.095,20808.0,20807.0,1.121584]
[1673710061917,0.095,20808.0,20807.0,1.421584]
[1673710062170,0.095,20808.0,20807.0,1.429584]
[1673710062427,0.095,20811.0,20807.0,1.121584]
[1673710062674,0.095,20808.0,20807.0,1.0298144]
[1673710062928,0.28572595,20808.0,20807.0,0.977205]
[1673710063180,0.23879664,20808.0,20807.0,0.016]
[1673710063443,0.55926664,20808.0,20807.0,0.016]
[1673710064436,0.7749616,20808.0,20807.0,0.016]
[1673710065687,1.03985064,20808.0,20807.0,0.016]
[1673710066682,1.2555456,20808.0,20807.0,0.016]
[1673710067941,1.87994439,20808.0,20807.0,0.016]
[1673710068703,1.59233296,20808.0,20807.0,0.016]
[1673710068959,1.73607607,20808.0,20807.0,0.016]
[1673710069214,0.095,20808.0,20807.0,0.016]
[1673710075738,1.73394894,20808.0,20807.0,0.01588147]
[1673710075991,1.9152327,20808.0,20807.0,0.01588147]
[1673710076239,3.06047862,20808.0,20807.0,0.01588147]
[1673710076494,3.0604803,20808.0,20807.0,0.01588147]
[1673710076737,0.41547,20808.0,20807.0,0.01588147]
[1673710076995,0.55919374,20808.0,20807.0,0.01588147]
[1673710078749,0.77477877,20808.0,20807.0,0.01588147]
[1673710078989,0.55919374,20808.0,20807.0,0.01588147]
[1673710079232,0.77477877,20808.0,20807.0,0.01588147]
[1673710079953,0.55919374,20808.0,20807.0,0.01588147]
[1673710081004,0.41547,20808.0,20807.0,0.01588147]
[1673710081259,0.095,20808.0,20807.0,0.01588147]
[1673710081516,0.095,20808.0,20807.0,0.97709547]
[1673710081765,0.094741,20808.0,20807.0,0.97709547]
[1673710083045,0.094741,20808.0,20807.0,1.12947747]
[1673710083312,0.094741,20808.0,20807.0,0.97709547]
[1673710084076,0.094741,20808.0,20807.0,0.01588147]
[1673710084077,0.28546695,20808.0,20807.0,0.01588147]
[1673710084322,0.45404977,20808.0,20807.0,0.01588147]
[1673710084621,0.91824273,20808.0,20807.0,0.01588147]
[1673710085127,2.10361226,20808.0,20807.0,0.01588147]
[1673710085862,2.58419626,20808.0,20807.0,0.01588147]
[1673710086396,1.62343975,20808.0,20807.0,0.06849087]
[1673710086638,0.415211,20808.0,20807.0,0.01588147]
[1673710086887,0.094741,20808.0,20807.0,0.49648847]
[1673710088472,0.094741,20808.0,20807.0,0.97709547]
[1673710090649,0.094741,20808.0,20807.0,0.9775818]
[1673710091147,0.094741,20808.0,20807.0,1.12947747]
[1673710091397,0.094741,20808.0,20807.0,0.97709547]
[1673710091898,0.094741,20808.0,20807.0,1.12947747]
[1673710092615,0.094741,20808.0,20807.0,1.42947747]
[1673710093388,0.094741,20808.0,20807.0,1.12947747]
[1673710093641,0.28546695,20808.0,20807.0,0.97709547]
[1673710093897,0.28546695,20808.0,20807.0,0.01588147]
[1673710093898,0.094741,20808.0,20807.0,0.01588147]
[1673710094390,0.23865412,20808.0,20807.0,0.01588147]
[1673710094632,0.55912412,20808.0,20807.0,0.01588147]
[1673710095647,0.77500198,20808.0,20807.0,0.01588147]
[1673710097597,0.55912412,20808.0,20807.0,0.01588147]
[1673710098850,0.23865412,20808.0,20807.0,0.01588147]
[1673710099369,0.55912412,20808.0,20807.0,0.01588147]
[1673710099606,0.29857012,20808.0,20807.0,0.01588147]
[1673710099857,0.23865412,20808.0,20807.0,0.01588147]
[1673710100554,0.55912412,20808.0,20807.0,0.01588147]
[1673710101079,0.77500198,20808.0,20807.0,0.01588147]
[1673710101579,0.77459298,20808.0,20807.0,0.01588147]
[1673710101792,0.23824512,20808.0,20807.0,0.01588147]
[1673710103568,0.55871512,20808.0,20807.0,0.01588147]
[1673710104309,0.094332,20808.0,20807.0,1.02970487]
[1673710104593,0.094332,20808.0,20807.0,1.42947747]
[1673710105342,0.094332,20808.0,20807.0,1.52947747]
[1673710105843,0.094332,20808.0,20807.0,1.67222058]
[1673710106860,0.094332,20808.0,20807.0,1.52947747]
[1673710107110,0.094332,20808.0,20807.0,1.60647747]
[1673710107366,0.08247826,20808.0,20807.0,2.98059418]
[1673710107619,0.0099353,20815.0,20808.0,0.01185174]
[1673710107876,0.0099353,20815.0,20810.0,1.92214]
[1673710108125,0.0099353,20815.0,20811.0,0.92731914]
[1673710108394,0.0099353,20815.0,20812.0,1.6464014]
[1673710108666,0.0099353,20815.0,20812.0,1.4940704]
[1673710108926,0.0099353,20815.0,20813.0,0.152321]
[1673710109176,0.0099353,20815.0,20814.0,1.441335]
[1673710109422,0.0099353,20815.0,20814.0,0.96089]
[1673710110166,0.0099353,20815.0,20814.0,1.113201]
[1673710110411,0.0099353,20815.0,20814.0,0.96089]
[1673710110916,0.0099353,20815.0,20814.0,1.03789]
[1673710111882,0.0099353,20815.0,20814.0,1.190201]
[1673710112425,0.0099353,20815.0,20814.0,1.490201]
[1673710112675,0.0099353,20815.0,20814.0,1.190201]
[1673710114456,0.0099353,20815.0,20814.0,1.490201]
[1673710115453,0.0099353,20815.0,20814.0,1.190201]
[1673710115707,0.0099353,20815.0,20814.0,1.490201]
[1673710118402,0.0099353,20815.0,20814.0,1.190201]
[1673710118657,0.0099353,20815.0,20814.0,1.03789]
[1673710118927,0.20066125,20815.0,20814.0,1.03789]
[1673710119176,0.3304053,20815.0,20814.0,0.077]
[1673710119686,0.8108273,20815.0,20814.0,0.077]
[1673710119937,0.95474042,20815.0,20814.0,0.077]
[1673710120199,0.8108273,20815.0,20808.0,0.96115]
[1673710120446,0.8108273,20815.0,20810.0,0.480534]
[1673710120447,0.25064195,20814.0,20810.0,0.480534]
[1673710120691,0.19072595,20814.0,20810.0,0.480534]
[1673710120942,0.19072595,20814.0,20810.0,0.961072]
[1673710121692,0.19072595,20814.0,20810.0,0.970072]
[1673710121944,0.0099353,20815.0,20810.0,0.970072]
[1673710122193,0.0099353,20815.0,20810.0,1.0226814]
[1673710122438,0.20066125,20815.0,20810.0,1.0226814]
[1673710122962,0.20066125,20815.0,20810.0,1.0136814]
[1673710123207,0.20066125,20815.0,20810.0,1.0226814]
[1673710123972,0.20066125,20815.0,20810.0,0.970072]
[1673710124223,0.20066125,20815.0,20810.0,1.0226814]
[1673710124475,0.19072595,20814.0,20810.0,0.009]
[1673710124709,0.99166895,20813.0,20810.0,0.009]
[1673710124952,0.059916,20812.0,20810.0,0.009]
[1673710125213,0.32047,20811.0,20810.0,0.009]
[1673710125931,0.32047,20811.0,20807.0,0.49055061]
[1673710126185,0.19072595,20811.0,20810.0,0.009]
[1673710126420,0.480496,20812.0,20810.0,0.009]
[1673710126682,0.32047,20811.0,20807.0,0.49056761]
[1673710126943,0.19272595,20811.0,20810.0,0.001]
[1673710127190,0.32247,20811.0,20807.0,0.49056761]
[1673710127450,0.32247,20811.0,20810.0,0.008]
[1673710127451,0.19472595,20811.0,20810.0,0.008]
[1673710127712,0.480515,20812.0,20807.0,0.97115661]
[1673710127972,0.67124095,20812.0,20807.0,1.10176601]
[1673710129011,0.19072595,20812.0,20807.0,1.10176601]
[1673710129254,1.37891312,20814.0,20808.0,0.3526094]
[1673710129507,0.0099353,20815.0,20809.0,1.6465954]
[1673710129761,0.0099353,20815.0,20810.0,0.3526094]
[1673710130010,0.0099353,20815.0,20811.0,1.1659554]
[1673710130277,0.0099353,20815.0,20811.0,1.0136154]
[1673710131031,0.00983972,20815.0,20812.0,0.15233]
[1673710131362,0.00983972,20815.0,20813.0,0.960936]
[1673710131789,0.01183972,20815.0,20813.0,0.960936]
[1673710132056,0.00983972,20815.0,20813.0,1.0135454]
[1673710132306,0.20056567,20815.0,20813.0,0.480468]
[1673710132559,0.00983972,20815.0,20813.0,0.480468]
[1673710133036,0.01183972,20815.0,20813.0,0.491468]
[1673710133289,0.20256567,20815.0,20813.0,0.491468]
[1673710133530,0.32047,20814.0,20813.0,0.011]
[1673710133779,0.01183972,20815.0,20813.0,0.011]
[1673710134037,0.01183972,20815.0,20812.0,0.480486]
[1673710134038,0.01183972,20815.0,20812.0,0.47135345]
[1673710134768,0.01183972,20815.0,20812.0,0.52396285]
[1673710135015,0.01183972,20815.0,20814.0,0.1]
[1673710135250,0.01183972,20815.0,20814.0,1.113201]
[1673710135251,0.00983972,20815.0,20814.0,1.113201]
[1673710135522,0.02183972,20815.0,20814.0,1.113201]
[1673710136022,0.02183972,20815.0,20814.0,0.96089]
[1673710136258,0.00983972,20815.0,20814.0,0.96089]
[1673710136528,0.00983972,20815.0,20814.0,1.124201]
[1673710136529,0.02083972,20815.0,20814.0,1.124201]
[1673710136779,0.02083972,20815.0,20814.0,1.113201]
[1673710136780,0.00983972,20815.0,20814.0,1.113201]
[1673710137028,0.00983972,20815.0,20814.0,1.185201]
[1673710137280,0.00983972,20815.0,20814.0,1.485201]
[1673710137781,0.00983972,20815.0,20814.0,1.185201]
[1673710138028,0.00983972,20815.0,20814.0,1.113201]
[1673710138282,0.01083972,20815.0,20814.0,1.252201]
[1673710138528,0.00983972,20815.0,20814.0,1.513201]
[1673710138779,0.01083972,20815.0,20814.0,1.354201]
[1673710139270,0.01083972,20815.0,20814.0,1.654201]
[1673710139772,0.01083972,20815.0,20814.0,1.731201]
[1673710140249,0.01083972,20815.0,20814.0,1.831201]
[1673710140488,0.01083972,20815.0,20814.0,1.731201]
[1673710141242,0.01083972,20815.0,20814.0,1.354201]
[1673710141987,0.00912185,20816.0,20814.0,2.3206719]
[1673710141988,0.00605849,20816.0,20814.0,2.3206719]
[1673710142248,0.00605849,20816.0,20815.0,0.70264675]
[1673710142504,5.849e-05,20816.0,20815.0,2.39395613]
[1673710142763,0.01048459,20817.0,20815.0,2.39395613]
[1673710142764,0.01048459,20817.0,20816.0,0.1]
[1673710143019,0.01048459,20817.0,20816.0,1.72256338]
[1673710143279,0.01048459,20817.0,20816.0,1.77485438]
[1673710143531,0.01048459,20817.0,20816.0,1.78395447]
[1673710143790,0.01048459,20817.0,20816.0,1.51022218]
[1673710144296,0.01048459,20817.0,20816.0,1.61022218]
[1673710145035,0.01048459,20817.0,20816.0,1.591889]
[1673710145325,0.01048459,20817.0,20816.0,1.51222218]
[1673710146372,0.01048459,20817.0,20816.0,1.69772218]
[1673710146598,0.01048459,20817.0,20816.0,2.19709968]
[1673710147344,0.01048459,20817.0,20816.0,2.27389968]
[1673710148577,0.01048459,20817.0,20816.0,1.67452218]
[1673710148820,0.01048459,20817.0,20816.0,1.77452218]
[1673710149075,0.01048459,20817.0,20816.0,1.74956403]
[1673710149313,0.01048459,20817.0,20816.0,2.24902941]
[1673710151081,0.01048459,20817.0,20816.0,2.26936259]
[1673710151331,0.01048459,20817.0,20816.0,1.6436295]
[1673710151586,0.01048459,20817.0,20816.0,1.5668295]
[1673710151817,0.01048459,20817.0,20816.0,1.29309721]
[1673710152794,0.01048459,20817.0,20816.0,1.69309721]
[1673710153319,0.00949232,20818.0,20817.0,0.1]
[1673710153569,0.00949232,20818.0,20817.0,2.02271738]
[1673710153801,0.00949232,20818.0,20817.0,2.17499738]
[1673710154548,0.0097597,20820.0,20818.0,0.1]
[1673710154796,0.0097597,20820.0,20819.0,1.52579]
[1673710155069,0.0097597,20820.0,20819.0,2.74208507]
[1673710155333,0.0097597,20820.0,20819.0,2.24310171]
[1673710155841,0.0097597,20820.0,20819.0,1.99838418]
[1673710156101,0.0097597,20820.0,20819.0,2.63649864]
[1673710157156,0.0097597,20820.0,20819.0,2.47716546]
[1673710157412,0.0097597,20820.0,20819.0,2.61616546]